Cogmind - Beta 13 X1 @@@ ROGUE MODE // 2023.07.16 @ 10:37:01 Player: aoemica Result: Destroyed by G-47 Trooper with Particle Gun Performance ------------- Evolutions (0) 0 Regions Visited (2) 400 Robots Destroyed (27) 135 Value Destroyed (823) 823 Prototype IDs (0) 0 Alien Tech Used (0) 0 Bonus (0) 0 TOTAL SCORE: 1358 Bonus ------- None Cogmind --------- Core Integrity 0/250 Matter 280/300 Energy 250/250 System Corruption 2% Temperature Cool (9) Movement Rolling (120) Ox1 Location -10/Subcaves Parts ------- > --- POWER (1) -------- Ion Engine > --- PROPULSION (2) --- Subdweller Monowheel Subdweller Monowheel > --- UTILITY (2) ------ Improved Heat Sink Medium Storage Unit > --- WEAPON (2) ------- Subdweller Machine Gun Subdweller Machine Gun > --- INVENTORY (10) --- Ion Engine Subdweller Monowheel Subdweller Monowheel Subdweller Monowheel Subdweller Beam Cannon Subdweller Machine Gun Subdweller Machine Gun Light Cannon Light Cannon Mining Laser Peak State ------------ > --- POWER ------------ Ion Engine > --- PROPULSION ------- Subdweller Monowheel Subdweller Monowheel > --- UTILITY ---------- Improved Heat Sink Medium Storage Unit > --- WEAPON ----------- Subdweller Machine Gun Subdweller Machine Gun > --- INVENTORY -------- Ion Engine Compact Wheel Subdweller Monowheel Subdweller Beam Cannon Subdweller Machine Gun Light Cannon Light Cannon Mining Laser [Rating: 14] Favorites ----------- Power Ion Engine Engine Ion Engine Propulsion Light Treads Treads Light Treads Leg Aluminum Leg Wheel Subdweller Monowheel Utility Improved Heat Sink Device Improved Heat Sink Storage Medium Storage Unit Protection Light Armor Plating Weapon Light Cannon Energy Gun Small Laser Ballistic Gun Subdweller Machine Gun Ballistic Cannon Light Cannon Special Weapon Mining Laser Build | -11 -10 -10 ------- Run | Jun Mat Sub Slots Evolved . | . . . Power . | . . . Propulsion . | . . . Utility . | . . . Weapon . | . . . Parts Attached 25 | . 12 13 Power 1 | . 1 . Engine 1 | . 1 . Core . | . . . Reactor . | . . . Propulsion 7 | . 3 4 Treads 3 | . 3 . Leg . | . . . Wheel 4 | . . 4 Hover . | . . . Flight . | . . . Utility 3 | . 3 . Device 1 | . 1 . Storage 1 | . 1 . Processor . | . . . Hackware . | . . . Protection 1 | . 1 . Artifact . | . . . Weapon 14 | . 5 9 Energy Gun 1 | . 1 . Energy Cannon . | . . . Ballistic Gun 7 | . 2 5 Ballistic Cannon 3 | . 2 1 Launcher . | . . . Special Weapon 3 | . . 3 Impact Weapon . | . . . Slashing Weapon . | . . . Piercing Weapon . | . . . Special Melee Weapon . | . . . Unidentified Prototypes . | . . . Parts Lost 4 | . 1 3 Power . | . . . Propulsion 2 | . . 2 Utility 1 | . 1 . Weapon 1 | . . 1 Highest Loss Streak 3 | . 1 3 To Critical Strikes . | . . . Average Slot Usage (%) 99 | . 99 100 Engine 14 | . 14 14 Treads 25 | . 27 24 Wheel 2 | . . 3 Device 12 | . 9 14 Storage 14 | . 14 14 Protection 1 | . 4 . Ballistic Gun 15 | . 13 17 Ballistic Cannon 10 | . 12 8 Naked Turns . | . . . Heaviest Build 24 | 10 22 24 Greatest Support 40 | 20 40 40 Greatest Overweight (x) 1 | . . 1 Average Overweight (x) . | . . . Largest Inventory Capacity 10 | . 10 10 Average Capacity 9 | . 9 10 Most Carried 10 | . 10 10 Average Carried 9 | . 8 9 Final Capacity 10 | 8 10 10 Final Carried 10 | 6 10 10 Class Distribution -------------------- 92% | Mutant 7% | Scavenger-Mutant Dominant Class ---------------- Mutant | -10/Materials Mutant | -10/Subcaves Resources | -11 -10 -10 ----------- Run | Jun Mat Sub Matter Collected 870 | 200 338 332 Remotely . | . . . Salvage Created 850 | . 502 348 Parts 57 | . 30 27 Haulers Intercepted . | . . . Recyclers Shooed 2 | . 2 . Parts Field Recycled . | . . . Retrieved Matter . | . . . Parts Self-Destructed 15 | . . 15 Prevented . | . . . Kills | -11 -10 -10 ------- Run | Jun Mat Sub Combat Hostiles Destroyed 22 | . 11 11 Guns 16 | . 7 9 Cannons 6 | . 4 2 Classes Destroyed 6 | . 6 . Worker 1 | . 1 . Recycler 1 | . 1 . Watcher 3 | . 3 . Swarmer 3 | . 3 . Grunt 8 | . 7 1 Subdweller 11 | . 1 10 Best Kill Streak 4 | . 4 3 Combat Bots Only 3 | . 3 3 Max Kills in Single Turn 1 | . 1 1 Gunslinging . | . . . Exploded . | . . . Melee . | . . . Uniques/NPCs Destroyed . | . . . Combat | -11 -10 -10 -------- Run | Jun Mat Sub Damage Taken 1303 | . 548 755 Core 250 | . 69 181 Absorbed by Shields . | . . . Regen/Repaired (Parts) 108 | . 108 . Core Remaining (%) 100 | 100 . . Volleys Fired 100 | . 53 47 Largest 2 | . 2 2 Hottest 100 | . 70 100 Shots Fired 188 | . 106 82 Gun 139 | . 89 50 Cannon 35 | . 17 18 Launcher . | . . . Special 14 | . . 14 Kinetic 173 | . 105 68 Thermal 15 | . 1 14 Explosive . | . . . Electromagnetic . | . . . Robot Hit Streak 22 | . 9 22 Robot Miss Streak 6 | . 6 3 Penetration Max . | . . . Secondary Targets 3 | . 1 2 Max Gunslinging Chain 1 | . 1 1 Shots Hit Robots 108 | . 56 52 Core Hits 44 | . 28 16 Critical Kills . | . . . Critical Parts Destroyed . | . . . Critical Strikes . | . . . Melee Attacks . | . . . Impact . | . . . Slashing . | . . . Piercing . | . . . Sneak Attacks . | . . . Combat Hostiles . | . . . Follow-up Attacks . | . . . Damage Inflicted 1616 | . 668 948 Guns 1216 | . 463 753 Cannons 371 | . 176 195 Explosions . | . . . Melee . | . . . Ramming 29 | . 29 . Kinetic 1587 | . 639 948 Thermal . | . . . Explosive . | . . . Electromagnetic . | . . . Impact . | . . . Slashing . | . . . Piercing . | . . . Highest Corruption 2 | . 2 2 Average Corruption 2 | . 2 2 Corruption Purged . | . . . Corruption Blocked . | . . . Effects 20 | . 3 17 Message Errors 2 | . 1 1 Matter Fused 6 | . . 6 Heat Flow Errors 3 | . . 3 Energy Discharges 3 | . 1 2 Data Loss (minor) 1 | . . 1 Data Loss (major) 1 | . . 1 Misfires 3 | . 1 2 Alerts 1 | . . 1 Overload Shots . | . . . Overflow Damage . | . . . Projectiles . | . . . Explosions . | . . . Melee . | . . . Knockbacks 7 | . 2 5 Impact . | . . . Kinetic 7 | . 2 5 Secondary . | . . . Self-Inflicted Damage . | . . . Shots . | . . . Rammed 5 | . 5 . Targets Rammed 6 | . 6 . Kicked . | . . . Crushed 1 | . 1 . Highest Temperature 184 | . 30 184 Average Temperature 16 | . 8 83 Received Heat Transfer 366 | . 231 135 Siege Activations . | . . . Robots Corrupted . | . . . Combat Hostiles . | . . . Parts Fried . | . . . Impact Corruptions . | . . . Robots Melted . | . . . Combat Hostiles . | . . . Parts Melted . | . . . Heat Transferred . | . . . Parts Sabotaged . | . . . Parts Stolen . | . . . Parts Stripped . | . . . Power Chain Reactions . | . . . Missiles Intercepted . | . . . Alert | -11 -10 -10 ------- Run | Jun Mat Sub Peak Influence 178 | . 178 . Initial . | . . . Average 54 | . 54 . Maximum Alert Level . | . . . Low Security (%) 100 | . 100 . Level 1 . | . . . Level 2 . | . . . Level 3 . | . . . Level 4 . | . . . Level 5 . | . . . High Security . | . . . Max Security . | . . . Squads Dispatched 1 | . 1 . Investigation . | . . . Extermination . | . . . Reinforcement 1 | . 1 . Assault . | . . . Garrison . | . . . Intercept . | . . . Searches Triggered . | . . . Construction Impeded . | . . . Haulers Reinforced . | . . . Active Scanning Responses . | . . . Cargo Convoy Interrupts . | . . . Stealth | -11 -10 -10 --------- Run | Jun Mat Sub Distress Signals 1 | . 1 . Communications Jammed . | . . . Distress Signals . | . . . Times Spotted 33 | . 21 12 Peak Tracking Total 3 | . 3 2 Tactical Retreats 2 | . 2 . Traps | -11 -10 -10 ------- Run | Jun Mat Sub Traps Triggered 2 | . 1 1 Indirectly . | . . . Trap Hack Attempts . | . . . Triggered . | . . . Disarmed . | . . . Reprogrammed . | . . . Reused . | . . . Traps Extracted . | . . . Installed . | . . . Triggered . | . . . Machines | -11 -10 -10 ---------- Run | Jun Mat Sub Machines Disabled . | . . . Max in Single Turn . | . . . Machines Repaired . | . . . Machines Sabotaged . | . . . Overloaded Fab Kills . | . . . Hacking | -11 -10 -10 --------- Run | Jun Mat Sub Machines Accessed 2 | . 2 . Terminals 1 | . 1 . Fabricators . | . . . Repair Stations 1 | . 1 . Recycling Units . | . . . Scanalyzers . | . . . Garrison Access . | . . . Total Hacks 5 | . 5 . Successful 2 | . 2 . Failed 3 | . 3 . Catastrophic 2 | . 2 . Database Lockouts . | . . . Manual 3 | . 3 . Terminals 3 | . 3 . Fabricators . | . . . Repair Stations 2 | . 2 . Recycling Units . | . . . Scanalyzers . | . . . Garrison Access . | . . . Terminal Hacks . | . . . Fabricator Hacks . | . . . Repair Station Hacks 2 | . 2 . Scan Component 1 | . 1 . Repair 1 | . 1 . Recycling Unit Hacks . | . . . Scanalyzer . | . . . Garrison Access Hacks . | . . . Unauthorized Hacks . | . . . Terminals . | . . . Fabricators . | . . . Repair Stations . | . . . Recycling Units . | . . . Scanalyzers . | . . . Garrison Access . | . . . Data Cores Recovered . | . . . Used . | . . . Hacking Detections 2 | . 2 . Full Trace Events . | . . . Feedback Events . | . . . Feedback Blocked . | . . . Robot Schematics Acquired . | . . . Robots Built . | . . . Authchips . | . . . Time . | . . . Total Robot Build Rating . | . . . Part Schematics Acquired . | . . . Parts Built . | . . . Authchips . | . . . Time . | . . . Total Part Build Rating . | . . . Parts Repaired 1 | . 1 . Time 26 | . 26 . Parts Recycled . | . . . Recycled Matter . | . . . Retrieved Matter . | . . . Retrieved Components . | . . . Parts Scanalyzed . | . . . Part Schematics Acquired . | . . . Parts Damaged . | . . . Bothacking | -11 -10 -10 ------------ Run | Jun Mat Sub Used RIF Installer . | . . . Robots Hacked . | . . . Non-combat . | . . . Combat . | . . . Robot Hacks Applied . | . . . Relay Couplers Released . | . . . Fabnet Peak Effective % . | . . . Robots Rewired . | . . . Allies Hacked . | . . . Hacks Repelled . | . . . Allies | -11 -10 -10 -------- Run | Jun Mat Sub Total Allies . | . . . Largest Group . | . . . Highest-Rated Group . | . . . Highest-Rated Ally . | . . . Total Orders . | . . . Ally Attacks . | . . . Total Damage . | . . . Kills . | . . . Allies Corrupted . | . . . Allies Melted . | . . . Intel | -11 -10 -10 ------- Run | Jun Mat Sub Robot Analysis Total . | . . . Derelict Logs Recovered . | . . . Drone Launches . | . . . Drone Recoveries . | . . . Exploration | -11 -10 -10 ------------- Run | Jun Mat Sub Turns Passed 2915 | . 1260 1655 Spaces Moved 1585 | 1 636 948 Core . | . . . Treads 1411 | . 624 787 Legs 13 | 1 12 . Wheels 161 | . . 161 Hover . | . . . Flight . | . . . Fastest Speed 110 | 120 120 110 Average Speed 154 | 120 159 151 Slowest Speed 160 | 120 160 160 Overloaded Moves . | . . . Propulsion Burnouts . | . . . Robots Hopped . | . . . Cave-ins Triggered . | . . . Exploration Rate (%) 39 | 1 57 59 Regions Visited 2 Branch Regions 1 Pre-discovered Areas . | . . . Known Exits Taken . | . . . Unknown Exits Taken 2 | 1 1 . Scrap Searched 4 | . . 4 Spaces Dug . | . . . Terrain Destroyed . | . . . Melee . | . . . Projectile . | . . . AOE . | . . . Terrain Rammed . | . . . Walls Destroyed . | . . . Machines Disabled . | . . . Actions | -11 -10 -10 --------- Run | Jun Mat Sub Total 1840 | . 785 1055 Wait 92 | . 58 34 Move 1583 | . 635 948 Hop . | . . . Pick Up 15 | . 9 6 Fast Attach 8 | . 5 3 Attach 4 | . 1 3 Detach 2 | . 2 . Swap 13 | . 6 7 Drop 17 | . 10 7 Fire 100 | . 53 47 Melee . | . . . Ram . | . . . Kick . | . . . Crush 6 | . 6 . Escape Stasis . | . . . Rewire . | . . . Trap . | . . . Miscellaneous . | . . . Route ------- -11/Junkyard -10/Materials (discovered 4 exits: [*Mat x2] / [*Min] / [*Sub]) -10/Subcaves (discovered 1 exit: [*Mat]) History --------- Turn | Location | Event 1 | -11/Junkyard | Discovered new exit (range 0) 1 | -11/Junkyard | Entered Materials 84 | -10/Materials | Discovered new exit (range 15) 214 | -10/Materials | Discovered new exit (range 16) 307 | -10/Materials | Build established: Mutant 663 | -10/Materials | Discovered new exit (range 8) 800 | -10/Materials | Derelicts attacked the area 1006 | -10/Materials | Discovered new exit (range 8) 1144 | -10/Materials | Repaired Lgt. Treads 1261 | -10/Materials | Entered Subcaves 1369 | -10/Subcaves | Discovered new exit (range 5) 2171 | -10/Subcaves | Ambushed by Subdweller buried in earth 2272 | -10/Subcaves | Core integrity fell below 50% 2698 | -10/Subcaves | Core integrity fell below 20% 2723 | -10/Subcaves | Lost 3 parts (2n1w) 2761 | -10/Subcaves | A swath of the cavern ceiling suddenly collapsed 2916 | -10/Subcaves | Destroyed by G-47 Trooper with Particle Gun Last Messages --------------- 02827_ Searching scrap... 02827_ Found Sub. Monowheel. 02827_ Found 21 Matter. 02828_ Acquired 21 matter. 02828_ Searching scrap... 02828_ Found Sub. Laser. 02828_ Found Battle Cannon. 02828_ Found 40 Matter. 02829_ Acquired 10 matter. 02845_ Sub. Monowheel shoots sparks and powers down. 02847_ Dropped Broken Sub. Monowheel. 02848_ Acquired Sub. Monowheel. 02853_ Dropped Com. Wheel. 02857_ System corrupted: FCS attempts to trigger Sub. Machine Gun. 02857_ System corrupted: Sub. Machine Gun misfires. 02876_ Acquired 5 matter. 02888_ Acquired 17 matter. 02910_ Destroyed Ion Engine. 02913_ G-34 Mercenary destroyed. 02913_ Switching to secondary target: G-47 Trooper. Map ----- +----------------------------------------------------+ | ?????????????????????????????????????????????????? | | ?????????????????????????????????????????????????? | | ?????????????????????????????????????????????????? | | ?????????????????????????????????????????????????? | | ?????????????????????????????????????????????????? | | ?????????????????????????????????????????????????? | | ?????????????????????????????????????????????????? | | ?????????????????????????????????????????????????? | | ?????????????????????????????????????????????????? | | ?????????????????????????????????????????????????? | | ?????????????????????????????????????????????????? | | ?????????????????????????????????????????????????? | | ?????????????????????????????????????????????????? | | ???????????????##????????????????????????????????? | | ??????????????## ???????????????????????????????? | | ??????????????? ???????????????????????????????# | | ???????????????? ??????????????????????????????# | | ???????????????? #??????????????###??????????### | | ??????????????##? ?????????????## #?????????## | | ??????????? ### ? ???????????## ##???????## | | ??????????? ? ???????##### ## ######### | | ???????????? ? ?????## ## #### ## # # # | | ??????????????# # ????## # ##??## ## | | ??????????????# ??## #####????### ## ### | | ????????????????? ### ##??????????####### #?# | | ??????????????????????#g%@# #????????????????###?# | | ????????????????????# ######????????????????????# | | ???????????????????# #??????????????????????????# | | ???????????????????###???????????????????????????? | | ?????????????????????????????????????????????????? | | ?????????????????????????????????????????????????? | | ?????????????????????????????????????????????????? | | ?????????????????????????????????????????????????? | | ?????????????????????????????????????????????????? | | ?????????????????????????????????????????????????? | | ?????????????????????????????????????????????????? | | ?????????????????????????????????????????????????? | | ?????????????????????????????????????????????????? | | ?????????????????????????????????????????????????? | | ?????????????????????????????????????????????????? | | ?????????????????????????????????????????????????? | | ?????????????????????????????????????????????????? | | ?????????????????????????????????????????????????? | | | | | | | | | | | | | | | +----------------------------------------------------+ Best States ------------- Heat Dissipation 39 Energy Generation 10 Energy Capacity 250 Matter Stores 300 Matter Capacity 300 Sight Range 16 Terrain Scan Density 10 Armor Coverage 150 Evasion (%) 55 Recoil Reduction 2 Item Schematics ----------------- None Robot Schematics ------------------ None Fabricated ------------ Nothing Alien Tech Used ----------------- None Achievements -------------- None Challenges ------------ None Game ------ Seed ShadingXenonPenetrator Manual? 0 Play Time 00:15:32 Cumulative 913.0 hours Start 2023.07.16 @ 10:26:47 End 2023.07.16 @ 10:37:01 Sessions 1 Manual Loads 0 Difficulty Rogue Special Mode None Game No. 420 Rogue 419 Adventurer 1 Explorer 0 Win Type - Total 136 Types 33/12/21/4/2/1/58/3/2 Lore% 96 Gallery% 98 Achievement% 92 Wizard Run 0 Options --------- ASCII 1 Keyboard 1 Movement Numpad Keybinds 0 Fullscreen 0 Font 18/Smallcaps Map View 76x50 Tactical HUD 1 Map Filters NONE Filters NONE Steam X RUN: ff9dd7fb-0b66-4c1c-a1a2-424fa1d216c3